bitfinex/quotes_SOLUSD_20251126
["timestamp","ask_amount","ask_price","bid_price","bid_amount"]
[1764168060144,3.95,137.48,137.44,7.36680346]
[1764168060462,1e-08,137.5,137.46,7.36680346]
[1764168060463,0.67000001,137.5,137.46,7.36680346]
[1764168060632,8.80994492,137.49,137.47,7.27431439]
[1764168061020,0.67,137.48,137.47,7.27431439]
[1764168061421,16.97886401,137.5,137.47,25.46010037]
[1764168061627,16.97886401,137.5,137.47,32.82690383]
[1764168062229,16.97886401,137.5,137.44,3.28]
[1764168062230,0.67000001,137.5,137.45,7.27503596]
[1764168062527,1e-08,137.5,137.45,25.46346811]
[1764168062735,7.36680346,137.48,137.45,25.46346811]
[1764168062939,16.84674838,137.49,137.45,25.46346811]
[1764168063151,1e-08,137.5,137.47,7.36680346]
[1764168063401,1e-08,137.5,137.49,7.36680346]
[1764168063656,1e-08,137.5,137.46,0.51]
[1764168063857,1e-08,137.5,137.49,7.36680346]
[1764168064063,0.67000001,137.5,137.48,7.36680346]
[1764168064249,1e-08,137.5,137.45,65.63033242]
[1764168064555,1e-08,137.5,137.49,7.36680346]
[1764168064772,1e-08,137.5,137.49,7.27325623]
[1764168064972,0.67000001,137.5,137.49,7.27325623]
[1764168066338,1e-08,137.5,137.49,14.64005969]
[1764168066540,5.80359999,137.59,137.49,72.97948146]
[1764168066541,4.4636,137.59,137.49,72.97948146]
[1764168066841,8.02680346,137.58,137.53,7.36680346]
[1764168067174,16.308864,137.56,137.49,28.73639682]
[1764168067476,8.80994492,137.54,137.49,7.27325623]
[1764168067657,25.11880892,137.54,137.49,7.27325623]
[1764168067862,8.80994492,137.52,137.49,7.27325623]
[1764168068062,0.66,137.53,137.49,7.27325623]
[1764168068394,0.66,137.52,137.49,32.82320028]
[1764168068680,16.308864,137.54,137.5,0.51]
[1764168068844,0.66,137.58,137.51,3.28]
[1764168069048,0.66,137.58,137.56,7.36680346]
[1764168069249,8.80994492,137.57,137.51,3.28]
[1764168069448,8.80994492,137.57,137.54,7.36680346]
[1764168069648,0.66,137.58,137.55,7.36680346]
[1764168069872,0.66,137.58,137.51,3.28]
[1764168070058,0.66,137.58,137.55,7.36680346]
[1764168070258,8.80994492,137.57,137.51,3.28]
[1764168070476,0.66,137.58,137.55,7.36680346]
[1764168070679,0.66,137.58,137.52,25.4508435]
[1764168070883,0.66,137.58,137.55,7.36680346]
[1764168071092,8.80994492,137.59,137.57,7.36680346]
[1764168071266,9.46994492,137.59,137.56,7.36680346]
[1764168071786,0.66,137.58,137.52,69.68599483]
[1764168071996,8.80994492,137.57,137.42,0.51]
[1764168072291,7.36680346,137.54,137.47,3.28]
[1764168072501,16.308864,137.56,137.53,7.36680346]
[1764168072778,16.308864,137.56,137.47,3.28]
[1764168072779,0.66,137.59,137.55,14.63674676]
[1764168072978,0.66,137.59,137.55,7.2699433]
[1764168073283,7.36680346,137.57,137.48,16.818864]
[1764168073473,8.80994492,137.54,137.5,7.36680346]
[1764168073653,7.36680346,137.53,137.48,14.64051077]
[1764168073996,7.36680346,137.52,137.48,7.27370731]
[1764168074171,8.04680346,137.52,137.48,25.4581705]
[1764168074479,12.08994492,137.54,137.46,7.27482176]
[1764168074480,8.04680346,137.51,137.46,7.27482176]
[1764168074684,8.04680346,137.51,137.47,7.36680346]
[1764168074901,8.04680346,137.51,137.44,25.46565773]
[1764168075073,0.68,137.5,137.46,7.36680346]
[1764168075380,7.36680346,137.49,137.44,14.64270567]
[1764168075590,3.96,137.5,137.44,14.64270567]
[1764168075791,16.308864,137.51,137.44,7.27590221]
[1764168075792,0.68,137.49,137.44,7.27590221]
[1764168075966,3.28,137.51,137.44,25.46565773]
[1764168076165,3.96,137.51,137.47,7.36680346]
[1764168076469,0.68,137.51,137.48,7.36680346]
[1764168076679,0.68,137.51,137.48,7.27378527]
[1764168076989,8.80994492,137.48,137.39,0.51]
[1764168077161,7.36680346,137.44,137.36,7.28013977]
[1764168077363,7.36680346,137.41,137.37,18.19902453]
[1764168077795,8.80994492,137.39,137.36,7.28013977]
[1764168077964,0.68,137.42,137.38,7.36680346]
[1764168078165,0.68,137.42,137.36,7.28013977]
[1764168078666,0.68,137.42,137.39,7.27855011]
[1764168079061,8.80994492,137.44,137.4,7.36680346]
[1764168079281,0.68,137.43,137.4,7.36680346]
[1764168079483,18.18342842,137.49,137.39,25.47492539]
[1764168079484,16.308864,137.48,137.42,7.36680346]
[1764168079682,8.80994492,137.46,137.39,25.47492539]
[1764168079883,8.80994492,137.44,137.4,7.36680346]
[1764168080270,0.68,137.43,137.39,32.84172885]
[1764168080582,8.80994492,137.46,137.41,7.36680346]
[1764168080782,0.68,137.43,137.4,7.36680346]
[1764168081173,0.68,137.43,137.39,25.56317874]
[1764168081381,8.80994492,137.45,137.4,7.36680346]
[1764168081704,16.17674838,137.41,137.34,7.28119994]
[1764168081875,16.308864,137.43,137.34,7.28119994]
[1764168081876,16.17674838,137.37,137.34,7.28119994]
[1764168082186,8.80994492,137.39,137.31,7.36680346]
[1764168082392,7.36680346,137.36,137.29,3.28]
[1764168082590,7.36680346,137.32,137.28,25.49533799]
[1764168082799,0.68,137.31,137.28,25.49533799]
[1764168083174,8.80994492,137.33,137.27,7.28478112]
[1764168083175,9.48994492,137.33,137.27,7.28478112]
[1764168083382,7.36680346,137.32,137.27,14.65158458]
[1764168083689,8.04680346,137.32,137.27,25.49706348]
[1764168083995,16.85674838,137.31,137.27,25.49706348]
[1764168084205,8.80994492,137.28,137.26,7.28530912]
[1764168084408,16.17674838,137.28,137.23,25.50454861]
[1764168084567,16.17674838,137.26,137.23,7.28703636]
[1764168084766,16.17674838,137.26,137.22,7.48745936]
[1764168084767,16.17674838,137.25,137.22,7.48745936]
[1764168085071,16.85674838,137.25,137.22,7.48745936]
[1764168085294,0.68,137.24,137.22,7.48745936]
[1764168085477,8.80994492,137.26,137.22,14.85426282]
[1764168085684,7.36680346,137.28,137.22,33.07318134]
[1764168086009,8.80994492,137.29,137.26,7.36680346]
[1764168086172,8.80994492,137.29,137.22,62.65421492]
[1764168086374,9.48994492,137.29,137.25,7.36680346]
[1764168086586,8.80994492,137.27,137.23,7.36680346]
[1764168086797,8.80994492,137.27,137.22,33.07318134]
[1764168087097,8.80994492,137.28,137.24,7.36680346]
[1764168087600,0.68,137.28,137.22,25.70637788]
[1764168087808,0.68,137.28,137.25,7.36680346]
[1764168087975,0.68,137.28,137.22,25.70637788]
[1764168088306,0.68,137.28,137.24,7.36680346]
[1764168088491,8.04680346,137.28,137.23,7.36680346]
[1764168088693,8.80994492,137.27,137.22,33.07318134]
[1764168089301,9.48994492,137.27,137.22,33.07318134]
[1764168089596,12.08994492,137.29,137.24,7.36680346]
[1764168089897,12.08994492,137.29,137.22,26.21637788]
[1764168089898,0.68,137.29,137.25,7.36680346]
[1764168091098,16.17674838,137.31,137.26,32.86585634]
[1764168091287,12.76994492,137.31,137.27,7.36680346]
[1764168091477,0.68,137.3,137.26,32.86585634]
[1764168092300,16.17674838,137.29,137.26,7.28544368]
[1764168092470,16.17674838,137.29,137.26,25.49905288]
[1764168092666,8.80994492,137.27,137.24,7.28650539]
[1764168093071,19.588864,137.3,137.24,32.86913044]
[1764168093072,19.45674838,137.29,137.24,32.86913044]
[1764168093272,8.04680346,137.31,137.25,7.36680346]
[1764168093494,3.28,137.29,137.26,7.36680346]
[1764168093694,9.48994492,137.3,137.26,7.36680346]
[1764168093903,11.32680346,137.32,137.27,7.36680346]
[1764168094082,0.68,137.35,137.31,7.36680346]
[1764168094287,0.68,137.35,137.32,7.36680346]
[1764168094480,0.68,137.35,137.28,7.87680346]
[1764168094481,0.68,137.38,137.34,7.36680346]
[1764168094681,3.96,137.38,137.34,7.36680346]
[1764168094988,3.96,137.38,137.34,14.64751312]
[1764168095309,0.68,137.37,137.34,14.64751312]
[1764168095608,0.68,137.37,137.34,32.85051297]
[1764168095795,0.68,137.37,137.34,14.64751312]
[1764168096107,0.68,137.37,137.34,32.85051297]
[1764168097169,8.80994492,137.36,137.34,7.28070966]
[1764168097369,0.68,137.37,137.34,7.28070966]
[1764168097576,0.68,137.37,137.33,7.36680346]
[1764168097577,0.68,137.36,137.33,7.28156966]
[1764168097788,8.04680346,137.36,137.33,7.28156966]
[1764168098072,16.17674838,137.34,137.3,18.20811528]
[1764168098274,19.45674838,137.34,137.3,18.20811528]
[1764168098494,0.68,137.33,137.31,7.28266108]
[1764168098674,9.48994492,137.34,137.31,25.48963799]
[1764168099197,9.48994492,137.38,137.34,7.28119994]
[1764168099398,9.48994492,137.38,137.34,14.6480034]
[1764168099698,8.80994492,137.38,137.34,25.48419979]
[1764168099876,0.68,137.37,137.34,7.28119994]
[1764168100500,0.68,137.37,137.34,25.48419979]
[1764168101111,8.80994492,137.36,137.34,25.48419979]
[1764168101989,9.48994492,137.36,137.34,7.28119994]
[1764168102508,8.80994492,137.38,137.35,7.36680346]
[1764168103179,8.80994492,137.38,137.36,14.64694323]
[1764168103381,8.80994492,137.4,137.37,7.36680346]
[1764168103608,8.80994492,137.4,137.36,14.64694323]
[1764168103785,8.80994492,137.38,137.36,7.28013977]
[1764168104491,19.588864,137.42,137.36,32.84729267]
[1764168104674,8.80994492,137.41,137.37,7.36680346]
[1764168105088,9.51994492,137.41,137.37,7.36680346]
[1764168105294,9.51994492,137.41,137.38,25.47677973]
[1764168105491,8.80994492,137.41,137.38,25.47677973]
[1764168106004,8.80994492,137.41,137.38,32.84358319]
[1764168106382,9.51994492,137.41,137.38,25.47677973]
[1764168106580,8.80994492,137.41,137.38,25.47677973]
[1764168106803,8.07680346,137.4,137.37,7.27948459]
[1764168107186,8.80994492,137.38,137.36,18.19968501]
[1764168109388,8.80994492,137.38,137.36,7.28013977]
[1764168109591,8.80994492,137.36,137.34,7.28088016]
[1764168110103,0.71,137.36,137.34,7.28088016]
[1764168111007,3.28,137.38,137.34,25.48388001]
[1764168111306,3.28,137.38,137.34,32.85068347]
[1764168111511,8.80994492,137.37,137.34,32.85068347]
[1764168111717,9.51994492,137.39,137.34,32.85068347]
[1764168111902,8.80994492,137.37,137.34,32.85068347]
[1764168112211,0.71,137.39,137.35,7.36680346]
[1764168112415,8.80994492,137.38,137.35,7.36680346]
[1764168112709,16.88674838,137.39,137.34,25.48388001]
[1764168113020,0.71,137.38,137.34,32.85068347]
[1764168113800,0.71,137.38,137.34,25.48388001]
[1764168114198,16.88674838,137.38,137.34,25.48388001]
[1764168114505,20.16674838,137.38,137.34,25.48388001]
[1764168114697,8.80994492,137.36,137.34,25.48388001]
[1764168115098,9.51994492,137.36,137.34,7.28088016]
[1764168115492,8.80994492,137.36,137.34,7.28088016]
[1764168115697,3.99,137.38,137.34,20.09996632]
[1764168115912,8.80994492,137.36,137.34,25.48388001]
[1764168116289,8.80994492,137.35,137.34,25.48388001]
[1764168116514,8.80994492,137.37,137.34,25.48388001]
[1764168116712,9.51994492,137.37,137.34,25.48388001]
[1764168116890,8.80994492,137.35,137.34,25.48388001]
[1764168118214,12.81908616,137.38,137.34,25.48388001]
[1764168118511,0.14216157,137.41,137.35,12.81908616]
[1764168118512,8.80994492,137.39,137.35,12.81908616]
[1764168118889,8.80994492,137.37,137.35,12.81908616]
[1764168119808,8.80994492,137.37,137.34,31.02208601]
[1764168120311,0.71,137.38,137.33,7.28173013]
[1764168120312,0.71,137.36,137.33,7.28173013]
[1764168120516,8.80994492,137.35,137.33,20.10081629]
[1764168120825,12.08994492,137.38,137.34,12.81908616]
[1764168121006,12.79994492,137.38,137.34,12.81908616]
[1764168121511,8.80994492,137.38,137.33,25.48605547]
[1764168121816,0.71,137.37,137.35,7.28066982]
[1764168121987,8.80994492,137.38,137.36,12.81908616]
[1764168122194,12.08994492,137.41,137.37,12.81908616]
[1764168122396,12.08994492,137.41,137.35,7.28066982]
[1764168122397,21.62903108,137.39,137.35,7.28066982]
[1764168122624,12.81908616,137.38,137.33,7.28173013]
[1764168122926,12.81908616,137.35,137.3,7.28332119]
[1764168123132,8.80994492,137.32,137.3,7.28332119]
[1764168123291,3.28,137.34,137.31,12.81908616]
[1764168123497,3.28,137.34,137.3,38.31071033]
[1764168123698,9.51994492,137.33,137.28,7.79409294]
[1764168123891,22.33903108,137.33,137.28,38.31413481]
[1764168124118,8.80994492,137.31,137.28,25.49504865]
[1764168124299,8.80994492,137.31,137.28,38.31413481]
[1764168124623,9.51994492,137.31,137.28,25.49504865]
[1764168124793,3.28,137.33,137.29,12.81908616]
[1764168125113,0.71,137.33,137.28,25.49504865]
[1764168125316,8.80994492,137.34,137.31,12.81908616]
[1764168125503,8.80994492,137.35,137.32,12.81908616]
[1764168125823,8.80994492,137.35,137.3,3.28]
[1764168126019,0.66,137.34,137.31,25.48976767]
[1764168126210,8.80994492,137.33,137.31,7.28279076]
[1764168127111,9.46994492,137.32,137.29,7.2838517]
[1764168127325,9.46994492,137.32,137.29,25.49348095]
[1764168127524,8.80994492,137.31,137.29,25.49348095]
[1764168127829,9.46994492,137.32,137.29,7.2838517]
[1764168128029,8.80994492,137.33,137.29,20.10293786]
[1764168128218,8.80994492,137.33,137.3,12.81908616]
[1764168128425,9.46994492,137.33,137.29,38.31256711]
[1764168128931,8.80994492,137.35,137.31,12.81908616]
[1764168129121,8.80994492,137.35,137.31,74.71908616]
[1764168129322,9.46994492,137.35,137.31,74.71908616]
[1764168130015,8.80994492,137.35,137.32,20.10134657]
[1764168130216,8.80994492,137.35,137.32,38.3069976]
[1764168130530,9.46994492,137.35,137.32,38.3069976]
[1764168131235,8.80994492,137.33,137.31,7.28261162]
[1764168131820,9.46994492,137.32,137.31,7.28261162]
[1764168132139,8.80994492,137.31,137.3,7.28332119]
[1764168132635,9.46994492,137.31,137.29,7.28362735]
[1764168133336,8.80994492,137.31,137.29,7.28362735]
[1764168134028,9.46994492,137.31,137.29,7.28362735]
[1764168134233,8.80994492,137.31,137.29,7.28362735]
[1764168134740,0.69,137.33,137.29,38.31234276]
[1764168134741,25.11880892,137.33,137.29,38.31234276]
[1764168134941,25.80880892,137.33,137.29,38.31234276]
[1764168135132,0.69,137.32,137.29,25.4932566]
[1764168135622,3.28,137.31,137.29,7.28362735]
[1764168135821,9.49994492,137.3,137.29,7.28362735]
[1764168136027,9.49994492,137.3,137.27,25.49707097]
[1764168136425,13.50908616,137.29,137.25,7.28597449]
[1764168136631,8.80994492,137.28,137.25,7.28597449]
[1764168136842,22.31903108,137.28,137.25,25.50091073]
[1764168137135,21.62903108,137.26,137.2,0.2]
[1764168137349,8.80994492,137.24,137.22,7.48753364]
[1764168137521,21.62903108,137.24,137.22,0.2]
[1764168137717,8.80994492,137.24,137.22,7.48753747]
[1764168137920,12.08994492,137.26,137.22,20.30662363]
[1764168138120,8.80994492,137.24,137.22,25.70645599]
[1764168138632,9.49994492,137.24,137.22,7.48753747]
[1764168139022,0.69,137.23,137.22,0.2]
[1764168139359,22.31903108,137.23,137.22,0.2]
[1764168139525,12.77994492,137.23,137.22,0.2]
[1764168139723,25.59903108,137.23,137.22,0.2]
[1764168140315,32.88606744,137.23,137.22,0.2]
[1764168140917,33.17039058,137.23,137.22,0.2]
[1764168143132,25.40313206,137.21,137.2,0.2]
[1764168143462,25.40313206,137.21,137.17,0.2]
[1764168143463,25.11880892,137.18,137.17,0.2]
[1764168143626,8.80994492,137.17,137.15,0.2]
[1764168143822,25.11880892,137.13,137.1,0.2]
[1764168144025,8.80994492,137.11,137.1,0.2]
[1764168144350,8.80994492,137.11,137.1,7.49394602]
[1764168144723,3.28,137.15,137.1,8.17394602]
[1764168145038,12.08994492,137.16,137.12,12.81908616]
[1764168145357,12.08994492,137.16,137.14,12.81908616]
[1764168145524,16.308864,137.17,137.13,0.68]
[1764168145525,8.80994492,137.18,137.15,12.81908616]
[1764168145845,8.80994492,137.18,137.1,38.54789724]
[1764168145846,21.62903108,137.18,137.1,25.72881108]
[1764168146054,22.31903108,137.18,137.13,12.81908616]
[1764168146349,9.49994492,137.18,137.15,7.29128691]
[1764168147656,37.93789508,137.16,137.1,7.49380154]
[1764168147827,12.81908616,137.13,137.1,7.49380154]
[1764168148029,8.80994492,137.11,137.1,0.2]
[1764168149040,8.80994492,137.11,137.1,7.49394602]
[1764168150061,8.80994492,137.11,137.1,0.2]
[1764168150645,8.80994492,137.11,137.1,7.49394602]
[1764168151538,8.80994492,137.11,137.1,0.2]
[1764168152158,9.49994492,137.11,137.1,0.2]
[1764168152458,24.90903108,137.12,137.1,0.2]
[1764168152660,12.77994492,137.12,137.1,0.2]
[1764168152862,25.59903108,137.12,137.1,0.2]
[1764168153161,8.80994492,137.11,137.1,0.2]
[1764168153347,12.08994492,137.11,137.1,0.2]
[1764168153661,8.80994492,137.11,137.1,7.49394602]
[1764168154174,3.28,137.14,137.1,25.72881108]
[1764168154348,22.31903108,137.11,137.1,0.2]
[1764168154551,33.17676826,137.11,137.1,0.2]
[1764168155359,9.49994492,137.11,137.1,0.2]
[1764168155572,25.80880892,137.11,137.1,0.2]
[1764168155738,29.08880892,137.11,137.1,0.2]
[1764168155942,41.90789508,137.11,137.1,0.2]
[1764168156251,3.28,137.14,137.1,8.17394602]
[1764168156560,3.97,137.14,137.1,20.99303218]
[1764168156763,12.08994492,137.15,137.11,13.49908616]
[1764168157063,12.77994492,137.15,137.11,12.81908616]
[1764168157237,8.80994492,137.13,137.1,0.2]
[1764168157438,8.80994492,137.13,137.1,39.22784197]
[1764168157635,8.80994492,137.15,137.12,12.81908616]
[1764168157863,12.08994492,137.15,137.12,12.81908616]
[1764168158440,12.08994492,137.15,137.12,20.11163931]
[1764168159539,12.08994492,137.15,137.12,38.34384467]
[1764168159756,12.08994492,137.15,137.12,20.11163931]
[1764168160163,12.08994492,137.15,137.13,12.81908616]
[1764168160375,8.80994492,137.15,137.14,7.29181857]
[1764168160742,8.80994492,137.18,137.14,39.02045117]
[1764168160946,12.77994492,137.18,137.14,26.20136501]
[1764168161161,25.11880892,137.16,137.15,12.81908616]
[1764168161343,8.80994492,137.16,137.15,12.81908616]
[1764168161548,8.80994492,137.2,137.15,13.49908616]
[1764168161745,8.80994492,137.2,137.18,12.81908616]
[1764168161964,34.24992914,137.29,137.19,16.09908616]
[1764168162271,3.28,137.28,137.26,12.81908616]
[1764168162477,0.69,137.31,137.28,7.28438228]
[1764168162771,19.588864,137.31,137.29,12.81908616]
[1764168162943,0.69,137.33,137.3,12.81908616]
[1764168163140,8.80994492,137.31,137.28,26.17533799]
[1764168163343,19.588864,137.32,137.29,12.81908616]
[1764168163543,8.80994492,137.31,137.29,12.81908616]
[1764168163767,0.69,137.35,137.3,13.49908616]
[1764168164042,8.80994492,137.32,137.28,7.28438228]
[1764168164266,0.71,137.31,137.29,12.81908616]
[1764168164544,8.80994492,137.32,137.29,20.1025053]
[1764168164750,8.80994492,137.32,137.29,12.81908616]
[1764168164959,8.80994492,137.3,137.26,7.28510362]
[1764168165167,3.28,137.29,137.26,20.10418978]
[1764168165385,3.99,137.29,137.26,20.10418978]
[1764168165555,3.28,137.29,137.27,12.81908616]
[1764168165977,9.51994492,137.28,137.25,7.28590129]
[1764168166159,22.33903108,137.28,137.23,12.81908616]
[1764168166363,8.80994492,137.26,137.23,12.81908616]
[1764168166563,12.08994492,137.26,137.23,20.10562447]
[1764168166772,12.79994492,137.26,137.23,7.28653831]
[1764168167083,12.79994492,137.26,137.21,12.81908616]
[1764168167084,0.71,137.25,137.21,12.81908616]
[1764168167256,12.08994492,137.26,137.22,12.81908616]
[1764168167455,0.71,137.25,137.21,7.28809853]
[1764168167851,8.80994492,137.24,137.2,12.81908616]
[1764168168056,8.80994492,137.24,137.19,20.10824717]
[1764168168057,8.80994492,137.22,137.19,20.10824717]
[1764168168291,12.08994492,137.22,137.21,12.81908616]
[1764168168475,3.28,137.22,137.21,20.10718469]
[1764168168661,12.79994492,137.22,137.2,7.2884735]
[1764168168861,12.79994492,137.22,137.18,20.10842548]
[1764168169286,12.79994492,137.22,137.19,12.81908616]
[1764168169488,12.79994492,137.22,137.18,20.10842548]
[1764168169665,12.79994492,137.22,137.18,38.33265641]
[1764168169866,12.79994492,137.22,137.19,12.81908616]
[1764168170261,12.79994492,137.22,137.18,38.33265641]
[1764168170757,12.79994492,137.22,137.19,12.81908616]
[1764168171002,9.51994492,137.22,137.19,12.81908616]
[1764168171192,3.28,137.22,137.2,12.81908616]
[1764168171489,3.28,137.22,137.19,12.81908616]
[1764168171663,3.99,137.22,137.19,12.81908616]
[1764168172058,3.99,137.22,137.18,7.28933932]
[1764168172059,9.51994492,137.21,137.18,7.28933932]
[1764168172465,9.51994492,137.21,137.18,20.10842548]
[1764168173561,8.80994492,137.21,137.18,38.33265641]
[1764168173797,8.80994492,137.21,137.19,12.81908616]
[1764168173975,8.80994492,137.2,137.19,12.81908616]
[1764168174165,8.80994492,137.2,137.18,38.33265641]
[1764168174361,8.80994492,137.2,137.18,39.01265641]
[1764168174571,0.71,137.26,137.19,8.05754183]
[1764168174877,16.308864,137.22,137.2,14.66617156]
[1764168175067,8.80994492,137.21,137.19,7.28911964]
[1764168175272,12.08994492,137.21,137.19,7.28911964]
[1764168175479,12.08994492,137.21,137.19,14.66666147]
[1764168175674,3.28,137.22,137.2,8.05754183]
[1764168175880,3.28,137.22,137.2,0.68]
[1764168176083,8.80994492,137.23,137.21,8.05754183]
[1764168176389,8.80994492,137.23,137.22,7.37754183]
[1764168176587,8.80994492,137.23,137.22,8.05754183]
[1764168176791,8.80994492,137.23,137.22,14.66510923]
[1764168177086,8.80994492,137.23,137.22,7.2875674]
[1764168177473,8.80994492,137.22,137.2,14.6656757]
[1764168178196,8.80994492,137.22,137.2,7.28813387]
[1764168178362,8.80994492,137.2,137.17,7.2902238]
[1764168178686,8.80994492,137.2,137.19,7.28916101]
[1764168179268,8.37186497,137.25,137.19,33.56960538]
[1764168179472,16.308864,137.22,137.21,7.37754183]
[1764168179664,8.80994492,137.21,137.2,7.37754183]
[1764168180375,8.80994492,137.25,137.2,8.05754183]
[1764168180689,12.08994492,137.25,137.22,14.66510923]
[1764168180893,8.80994492,137.23,137.2,14.66617156]
[1764168181064,3.28,137.25,137.22,7.37754183]
[1764168181271,3.28,137.25,137.21,0.68]
[1764168181272,0.71,137.25,137.21,0.68]
[1764168181487,19.46748675,137.26,137.21,7.37754183]
[1764168181689,8.80994492,137.23,137.21,7.37754183]
[1764168181888,9.51994492,137.25,137.21,7.37754183]
[1764168182288,8.80994492,137.25,137.21,7.37754183]
[1764168182597,8.80994492,137.23,137.2,7.28862973]
[1764168182799,12.08994492,137.23,137.2,7.28862973]
[1764168182978,12.79994492,137.23,137.19,7.37754183]
[1764168183178,12.08994492,137.23,137.18,7.28969237]
[1764168183397,16.18748675,137.21,137.16,7.37754183]
[1764168183587,3.28,137.2,137.16,7.37754183]
[1764168183790,3.99,137.2,137.16,7.37754183]
[1764168183984,8.80994492,137.18,137.16,7.37754183]
[1764168184494,8.80994492,137.18,137.16,8.05754183]
[1764168184694,8.80994492,137.18,137.16,7.37754183]
[1764168184883,8.80994492,137.18,137.17,7.2902238]
[1764168185489,8.80994492,137.18,137.17,14.66776563]
[1764168186200,7.37754183,137.23,137.17,33.58332515]
[1764168186497,0.82216157,137.24,137.17,33.58332515]
[1764168186498,0.68,137.24,137.2,7.37754183]
[1764168186800,25.11880892,137.23,137.21,7.28809853]
[1764168187983,7.37754183,137.25,137.22,7.37754183]
[1764168187984,12.08994492,137.25,137.22,7.37754183]
[1764168188308,12.76994492,137.25,137.22,7.37754183]
[1764168188600,0.68,137.24,137.21,7.28809853]
[1764168188790,12.76994492,137.25,137.21,14.66564036]
[1764168189099,0.68,137.24,137.21,14.66564036]
[1764168189499,8.80994492,137.25,137.22,7.37754183]
[1764168189684,7.37754183,137.29,137.24,7.37754183]
[1764168189884,3.28,137.3,137.26,7.37754183]
[1764168190091,8.80994492,137.28,137.26,7.37754183]
[1764168190490,8.80994492,137.28,137.25,7.37754183]
[1764168190901,8.80994492,137.28,136.89,46.01926281]
[1764168190902,8.80994492,137.24,137.19,25.51206355]
[1764168191115,8.80994492,137.22,137.19,26.20206355]
[1764168191295,8.80994492,137.22,137.2,7.37754183]
[1764168191499,8.80994492,137.2,137.16,7.37754183]
[1764168191684,16.18748675,137.2,137.15,7.29128691]
[1764168191888,8.80994492,137.18,137.15,7.29128691]
[1764168192192,16.18748675,137.18,137.14,7.29161716]
[1764168192395,0.68,137.17,137.14,7.29161716]
[1764168192592,8.05754183,137.17,137.13,14.66967913]
[1764168193106,8.80994492,137.17,137.14,7.37754183]
[1764168193507,9.48994492,137.17,137.14,7.37754183]
[1764168194711,9.48994492,137.17,137.13,32.90055494]
[1764168195091,0.71,137.17,137.14,7.37754183]
[1764168195711,8.80994492,137.2,137.16,7.37754183]
[1764168196014,8.08754183,137.19,137.13,25.52301311]
[1764168196189,8.08754183,137.19,137.14,7.37754183]
[1764168196695,8.80994492,137.18,137.15,7.37754183]
[1764168196892,8.80994492,137.18,137.16,7.29075532]
[1764168197298,8.80994492,137.18,137.16,15.33829715]
[1764168197500,8.80994492,137.18,137.17,7.37754183]
[1764168198004,25.11880892,137.16,137.1,0.87]
[1764168198307,32.63851232,137.11,137.1,0.2]
[1764168198532,32.49635075,137.11,137.1,0.2]
[1764168198685,25.11880892,137.11,137.1,0.2]
[1764168198885,25.11880892,137.11,137.1,7.49394602]
[1764168199110,8.80994492,137.11,137.1,7.49394602]
[1764168199311,8.80994492,137.11,137.1,14.87148785]
[1764168199607,8.80994492,137.11,137.1,7.57754183]
[1764168199813,16.308864,137.14,137.1,33.10635291]
[1764168199994,8.80994492,137.13,137.11,7.37754183]
[1764168200196,8.80994492,137.13,137.12,7.37754183]
[1764168200389,8.80994492,137.13,137.11,7.37754183]
[1764168200589,8.80994492,137.11,137.1,0.2]
[1764168200790,16.18748675,137.11,137.1,0.2]
[1764168201004,33.20635075,137.11,137.1,0.2]
[1764168202714,25.11880892,137.11,137.1,7.49394602]
[1764168202890,16.308864,137.11,137.1,7.49394602]
[1764168203307,16.308864,137.11,137.1,0.2]
[1764168204113,8.80994492,137.13,137.1,7.49394602]
[1764168204600,8.80994492,137.13,137.1,25.72881108]
[1764168204913,8.80994492,137.13,137.1,33.10635291]
[1764168205916,8.80994492,137.13,137.11,8.04754183]
[1764168206112,8.80994492,137.13,137.12,7.37754183]
[1764168206316,8.80994492,137.17,137.12,8.04754183]
[1764168206506,8.80994492,137.17,137.13,0.67]
[1764168206816,8.80994492,137.15,137.12,7.37754183]
[1764168207020,4.27432314,137.18,137.13,7.37754183]
[1764168207209,4.27432314,137.18,137.14,7.29181857]
[1764168207210,8.80994492,137.16,137.14,7.29181857]
[1764168207516,8.80994492,137.16,137.13,7.37754183]
[1764168207823,0.71,137.15,137.13,7.37754183]
[1764168208002,0.71,137.15,137.11,25.5262986]
[1764168208003,0.71,137.15,137.12,7.37754183]
[1764168208202,8.80994492,137.14,137.11,7.29341404]
[1764168208403,9.51994492,137.14,137.11,7.29341404]
[1764168208598,9.51994492,137.14,137.11,14.67095587]
[1764168208802,9.51994492,137.14,137.11,32.90449098]
[1764168209095,8.80994492,137.14,137.12,7.37754183]